[Event "Titled Tuesday Blitz June 27 Late 2023"]
[White "Vaibhav Jayant Raut"]
[Black "Perez, Maximiliano"]
[WhiteFideId "5089034"]
[BlackFideId "117234"]
[WhiteElo "2630"]
[BlackElo "2538"]
[Result "1-0"]
[Round "9"]
[TimeControl "180+2"]
[Date "2023.06.27"]
[WhiteClock "0:01:36"]
[BlackClock "0:00:00"]
[Board "50"]

1. c4 {[%clk 0:03:00]}  e6 {[%clk 0:01:33]} 2. Nf3 {[%clk 0:02:58]}  d5 {[%clk 0:01:32]} 3. d4 {[%clk 0:02:58]}  a6 {[%clk 0:01:30]} 4. cxd5 {[%clk 0:02:57]}  exd5 {[%clk 0:01:30]} 5. Nc3 {[%clk 0:02:58]}  Nf6 {[%clk 0:01:29]} 6. Bg5 {[%clk 0:02:59]}  Be6 {[%clk 0:01:26]} 7. e3 {[%clk 0:02:58]}  Bd6 {[%clk 0:01:23]} 8. Bd3 {[%clk 0:02:58]}  h6 {[%clk 0:01:17]} 9. Bh4 {[%clk 0:02:58]}  Nbd7 {[%clk 0:01:12]} 10. Rc1 {[%clk 0:02:58]}  c6 {[%clk 0:01:12]} 11. O-O {[%clk 0:02:58]}  O-O {[%clk 0:01:12]} 12. a3 {[%clk 0:02:56]}  a5 {[%clk 0:01:07]} 13. Nd2 {[%clk 0:02:46]}  Re8 {[%clk 0:00:57]} 14. f4 {[%clk 0:02:43]}  Nf8 {[%clk 0:00:36]} 15. Nf3 {[%clk 0:02:39]}  Bg4 {[%clk 0:00:35]} 16. h3 {[%clk 0:02:29]}  Bxf3 {[%clk 0:00:35]} 17. Qxf3 {[%clk 0:02:30]}  Be7 {[%clk 0:00:33]} 18. Rce1 {[%clk 0:02:26]}  Ne4 {[%clk 0:00:31]} 19. Bxe7 {[%clk 0:02:26]}  Qxe7 {[%clk 0:00:32]} 20. Bxe4 {[%clk 0:02:26]}  dxe4 {[%clk 0:00:32]} 21. Qg4 {[%clk 0:02:24]}  b5 {[%clk 0:00:31]} 22. f5 {[%clk 0:02:18]}  Nd7 {[%clk 0:00:31]} 23. a4 {[%clk 0:02:08]}  b4 {[%clk 0:00:30]} 24. Ne2 {[%clk 0:02:08]}  Nf6 {[%clk 0:00:31]} 25. Qg3 {[%clk 0:02:08]}  c5 {[%clk 0:00:29]} 26. dxc5 {[%clk 0:02:08]}  Qxc5 {[%clk 0:00:29]} 27. Nd4 {[%clk 0:02:08]}  Rad8 {[%clk 0:00:29]} 28. Rc1 {[%clk 0:02:08]}  Qd5 {[%clk 0:00:28]} 29. Rc6 {[%clk 0:02:08]}  Qe5 {[%clk 0:00:15]} 30. Qxe5 {[%clk 0:01:59]}  Rxe5 {[%clk 0:00:16]} 31. Rfc1 {[%clk 0:01:59]}  Nd5 {[%clk 0:00:16]} 32. Kf2 {[%clk 0:02:00]}  Ne7 {[%clk 0:00:15]} 33. R6c5 {[%clk 0:01:56]}  Rdd5 {[%clk 0:00:15]} 34. Rxd5 {[%clk 0:01:55]}  Rxd5 {[%clk 0:00:16]} 35. g4 {[%clk 0:01:56]}  h5 {[%clk 0:00:15]} 36. Rc7 {[%clk 0:01:55]}  Kf8 {[%clk 0:00:12]} 37. Ra7 {[%clk 0:01:55]}  Nc8 {[%clk 0:00:10]} 38. Ra8 {[%clk 0:01:54]}  Rc5 {[%clk 0:00:10]} 39. Nb3 {[%clk 0:01:43]}  Rc2+ {[%clk 0:00:09]} 40. Kg3 {[%clk 0:01:43]}  hxg4 {[%clk 0:00:09]} 41. hxg4 {[%clk 0:01:43]}  Ke7 {[%clk 0:00:09]} 42. Nxa5 {[%clk 0:01:42]}  Nd6 {[%clk 0:00:06]} 43. b3 {[%clk 0:01:40]}  g5 {[%clk 0:00:04]} 44. fxg6 {[%clk 0:01:40]}  fxg6 {[%clk 0:00:04]} 45. Ra7+ {[%clk 0:01:36]}  Ke6 {[%clk 0:00:04]} 46. Ra6 {[%clk 0:01:35]}  Ke5 {[%clk 0:00:04]} 47. Nc6+ {[%clk 0:01:35]}  Kf6 {[%clk 0:00:00]} 48. Nd4 {[%clk 0:01:36]} 1-0


[Site "https://www.chess.com"]

[Event "Titled Tuesday Blitz June 27 Late 2023"]
[White "Jovic, Stanoje"]
[Black "Sun, Rick"]
[WhiteFideId "905020"]
[BlackFideId "30909481"]
[WhiteElo "2520"]
[BlackElo "2594"]
[Result "1-0"]
[Round "9"]
[TimeControl "180+2"]
[Date "2023.06.27"]
[WhiteClock "0:00:50"]
[BlackClock "0:00:00"]
[Board "52"]

1. c4 {[%clk 0:03:00]}  d6 {[%clk 0:03:00]} 2. g3 {[%clk 0:02:59]}  g6 {[%clk 0:03:01]} 3. Bg2 {[%clk 0:02:59]}  Bg7 {[%clk 0:03:01]} 4. Nc3 {[%clk 0:02:58]}  e5 {[%clk 0:03:01]} 5. Nf3 {[%clk 0:02:57]}  f5 {[%clk 0:03:01]} 6. d3 {[%clk 0:02:57]}  Nc6 {[%clk 0:02:59]} 7. O-O {[%clk 0:02:55]}  Nf6 {[%clk 0:02:56]} 8. Rb1 {[%clk 0:02:54]}  a5 {[%clk 0:02:54]} 9. a3 {[%clk 0:02:54]}  O-O {[%clk 0:02:54]} 10. b4 {[%clk 0:02:54]}  axb4 {[%clk 0:02:54]} 11. axb4 {[%clk 0:02:55]}  h6 {[%clk 0:02:02]} 12. b5 {[%clk 0:02:54]}  Ne7 {[%clk 0:02:01]} 13. Ne1 {[%clk 0:02:52]}  g5 {[%clk 0:01:59]} 14. Nc2 {[%clk 0:02:52]}  f4 {[%clk 0:01:55]} 15. Nb4 {[%clk 0:02:50]}  h5 {[%clk 0:01:45]} 16. e3 {[%clk 0:02:48]}  Nf5 {[%clk 0:01:09]} 17. Nbd5 {[%clk 0:02:36]}  h4 {[%clk 0:00:56]} 18. Nxf6+ {[%clk 0:02:31]}  Bxf6 {[%clk 0:00:48]} 19. Nd5 {[%clk 0:02:28]}  hxg3 {[%clk 0:00:35]} 20. fxg3 {[%clk 0:02:22]}  Kg7 {[%clk 0:00:31]} 21. gxf4 {[%clk 0:02:08]}  Ra2 {[%clk 0:00:21]} 22. Rb2 {[%clk 0:01:57]}  Rxb2 {[%clk 0:00:14]} 23. Bxb2 {[%clk 0:01:57]}  c6 {[%clk 0:00:13]} 24. Nxf6 {[%clk 0:01:53]}  Qxf6 {[%clk 0:00:11]} 25. fxe5 {[%clk 0:01:52]}  dxe5 {[%clk 0:00:10]} 26. e4 {[%clk 0:01:51]}  Qd6 {[%clk 0:00:08]} 27. exf5 {[%clk 0:01:50]}  Qb4 {[%clk 0:00:08]} 28. Bxe5+ {[%clk 0:01:48]}  Kh6 {[%clk 0:00:09]} 29. Qf3 {[%clk 0:01:39]}  Bxf5 {[%clk 0:00:06]} 30. Qe3 {[%clk 0:01:31]}  cxb5 {[%clk 0:00:06]} 31. Be4 {[%clk 0:01:24]}  Bxe4 {[%clk 0:00:05]} 32. Rxf8 {[%clk 0:01:20]}  Qxf8 {[%clk 0:00:05]} 33. Qxe4 {[%clk 0:01:17]}  bxc4 {[%clk 0:00:05]} 34. dxc4 {[%clk 0:01:16]}  Qb4 {[%clk 0:00:05]} 35. Qd4 {[%clk 0:01:09]}  Qe1+ {[%clk 0:00:05]} 36. Kg2 {[%clk 0:01:10]}  Qe2+ {[%clk 0:00:06]} 37. Kg3 {[%clk 0:01:08]}  Qe1+ {[%clk 0:00:04]} 38. Kf3 {[%clk 0:01:08]}  Qh1+ {[%clk 0:00:03]} 39. Kf2 {[%clk 0:01:05]}  b5 {[%clk 0:00:02]} 40. cxb5 {[%clk 0:01:03]}  Qb1 {[%clk 0:00:03]} 41. b6 {[%clk 0:01:02]}  Qc2+ {[%clk 0:00:03]} 42. Ke3 {[%clk 0:01:02]}  Qc1+ {[%clk 0:00:03]} 43. Ke4 {[%clk 0:01:00]}  Qb1+ {[%clk 0:00:02]} 44. Kd5 {[%clk 0:00:59]}  Qb5+ {[%clk 0:00:03]} 45. Kd6 {[%clk 0:00:59]}  Qa6 {[%clk 0:00:03]} 46. Kc7 {[%clk 0:00:56]}  Qa5 {[%clk 0:00:02]} 47. Bd6 {[%clk 0:00:53]}  Kh5 {[%clk 0:00:01]} 48. Qc5 {[%clk 0:00:51]}  Qe1 {[%clk 0:00:00]} 49. Be7 {[%clk 0:00:50]} 1-0


[Site "https://www.chess.com"]

[Event "Titled Tuesday Blitz June 27 Late 2023"]
[White "Bitoon, Richard"]
[Black "Castella Garcia, Fausto"]
[WhiteFideId "5201110"]
[BlackFideId "3501922"]
[WhiteElo "2579"]
[BlackElo "2387"]
[Result "1-0"]
[Round "9"]
[TimeControl "180+2"]
[Date "2023.06.27"]
[WhiteClock "0:01:10"]
[BlackClock "0:00:11"]
[Board "55"]

1. e4 {[%clk 0:03:00]}  c5 {[%clk 0:02:49]} 2. c3 {[%clk 0:02:59]}  d6 {[%clk 0:02:48]} 3. d4 {[%clk 0:02:57]}  Nf6 {[%clk 0:02:49]} 4. Bd3 {[%clk 0:02:57]}  g6 {[%clk 0:02:47]} 5. Nf3 {[%clk 0:02:57]}  Bg7 {[%clk 0:02:47]} 6. dxc5 {[%clk 0:02:58]}  d5 {[%clk 0:02:39]} 7. exd5 {[%clk 0:02:41]}  Qxd5 {[%clk 0:02:23]} 8. Be3 {[%clk 0:02:37]}  O-O {[%clk 0:02:20]} 9. O-O {[%clk 0:02:30]}  Bf5 {[%clk 0:01:59]} 10. Bxf5 {[%clk 0:02:27]}  Qxf5 {[%clk 0:02:00]} 11. Nd4 {[%clk 0:02:26]}  Qc8 {[%clk 0:01:52]} 12. Qb3 {[%clk 0:02:22]}  Na6 {[%clk 0:01:44]} 13. c6 {[%clk 0:02:16]}  bxc6 {[%clk 0:01:45]} 14. Qa4 {[%clk 0:02:15]}  c5 {[%clk 0:01:39]} 15. Nc6 {[%clk 0:02:12]}  Re8 {[%clk 0:01:33]} 16. Bg5 {[%clk 0:02:05]}  Nd5 {[%clk 0:01:27]} 17. Na3 {[%clk 0:01:57]}  h6 {[%clk 0:01:15]} 18. Bh4 {[%clk 0:01:57]}  Nb6 {[%clk 0:00:58]} 19. Qe4 {[%clk 0:01:55]}  g5 {[%clk 0:00:50]} 20. Bg3 {[%clk 0:01:55]}  e6 {[%clk 0:00:46]} 21. Nb5 {[%clk 0:01:46]}  f5 {[%clk 0:00:46]} 22. Qf3 {[%clk 0:01:46]}  f4 {[%clk 0:00:44]} 23. Nd6 {[%clk 0:01:46]}  Qd7 {[%clk 0:00:40]} 24. Nxe8 {[%clk 0:01:41]}  Rxe8 {[%clk 0:00:39]} 25. Rad1 {[%clk 0:01:41]}  Qc7 {[%clk 0:00:34]} 26. Na5 {[%clk 0:01:26]}  fxg3 {[%clk 0:00:33]} 27. Qxg3 {[%clk 0:01:24]}  Nd5 {[%clk 0:00:33]} 28. Qxc7 {[%clk 0:01:22]}  Naxc7 {[%clk 0:00:33]} 29. Nc6 {[%clk 0:01:21]}  a6 {[%clk 0:00:33]} 30. Rfe1 {[%clk 0:01:22]}  Kf7 {[%clk 0:00:32]} 31. c4 {[%clk 0:01:20]}  Nf6 {[%clk 0:00:28]} 32. Nd8+ {[%clk 0:01:16]}  Kg8 {[%clk 0:00:26]} 33. Nb7 {[%clk 0:01:17]}  e5 {[%clk 0:00:23]} 34. Nxc5 {[%clk 0:01:17]}  e4 {[%clk 0:00:11]} 35. Nd7 {[%clk 0:01:10]} 1-0


[Site "https://www.chess.com"]

[Event "Titled Tuesday Blitz June 27 Late 2023"]
[White "Tissir, Mohamed"]
[Black "Bolourchifard, Farzad"]
[WhiteFideId "9000240"]
[BlackFideId "12510084"]
[WhiteElo "2521"]
[BlackElo "2675"]
[Result "0-1"]
[Round "9"]
[TimeControl "180+2"]
[Date "2023.06.27"]
[WhiteClock "0:00:00"]
[BlackClock "0:01:12"]
[Board "58"]

1. e4 {[%clk 0:03:00]}  e5 {[%clk 0:03:00]} 2. Nf3 {[%clk 0:02:59]}  Nc6 {[%clk 0:03:00]} 3. Bc4 {[%clk 0:02:58]}  Bc5 {[%clk 0:03:00]} 4. c3 {[%clk 0:02:59]}  Nf6 {[%clk 0:03:00]} 5. d3 {[%clk 0:02:59]}  d6 {[%clk 0:03:00]} 6. Bb3 {[%clk 0:02:59]}  a5 {[%clk 0:03:00]} 7. Nbd2 {[%clk 0:03:00]}  O-O {[%clk 0:03:00]} 8. Nf1 {[%clk 0:02:59]}  d5 {[%clk 0:03:00]} 9. Qe2 {[%clk 0:02:59]}  dxe4 {[%clk 0:02:58]} 10. dxe4 {[%clk 0:02:59]}  Ng4 {[%clk 0:02:59]} 11. Ne3 {[%clk 0:02:58]}  Nxe3 {[%clk 0:02:58]} 12. Bxe3 {[%clk 0:02:59]}  Qe7 {[%clk 0:02:58]} 13. h3 {[%clk 0:02:48]}  a4 {[%clk 0:02:53]} 14. Bd5 {[%clk 0:02:48]}  Na5 {[%clk 0:02:41]} 15. Bxc5 {[%clk 0:01:18]}  Qxc5 {[%clk 0:02:40]} 16. O-O {[%clk 0:01:18]}  c6 {[%clk 0:02:38]} 17. b4 {[%clk 0:01:17]}  axb3 {[%clk 0:02:34]} 18. axb3 {[%clk 0:01:13]}  cxd5 {[%clk 0:02:28]} 19. b4 {[%clk 0:01:13]}  Qc7 {[%clk 0:02:19]} 20. bxa5 {[%clk 0:01:11]}  dxe4 {[%clk 0:02:19]} 21. Qxe4 {[%clk 0:01:08]}  Rxa5 {[%clk 0:02:16]} 22. Rxa5 {[%clk 0:00:59]}  Qxa5 {[%clk 0:02:17]} 23. Qxe5 {[%clk 0:00:57]}  Qa2 {[%clk 0:02:05]} 24. Nd4 {[%clk 0:00:54]}  Qc4 {[%clk 0:02:02]} 25. Rc1 {[%clk 0:00:45]}  h6 {[%clk 0:01:50]} 26. Nf5 {[%clk 0:00:42]}  f6 {[%clk 0:01:41]} 27. Ne7+ {[%clk 0:00:36]}  Kf7 {[%clk 0:01:34]} 28. Qd6 {[%clk 0:00:29]}  Be6 {[%clk 0:01:24]} 29. Rb1 {[%clk 0:00:17]}  Qe4 {[%clk 0:01:13]} 30. Rb6 {[%clk 0:00:15]}  Re8 {[%clk 0:01:13]} 31. Rb4 {[%clk 0:00:04]}  Qe1+ {[%clk 0:01:12]} 32. Kh2 {[%clk 0:00:00]}  Rxe7 {[%clk 0:01:12]} 0-1


[Site "https://www.chess.com"]

[Event "Titled Tuesday Blitz June 27 Late 2023"]
[White "Vaglio Mattey, Emanuel"]
[Black "Karttunen, Mika"]
[WhiteFideId "6504167"]
[BlackFideId "502081"]
[WhiteElo "2514"]
[BlackElo "2630"]
[Result "0-1"]
[Round "9"]
[TimeControl "180+2"]
[Date "2023.06.27"]
[WhiteClock "0:00:05"]
[BlackClock "0:00:15"]
[Board "59"]

1. Nf3 {[%clk 0:02:58]}  Nf6 {[%clk 0:02:59]} 2. b3 {[%clk 0:02:57]}  e6 {[%clk 0:02:56]} 3. Bb2 {[%clk 0:02:57]}  d5 {[%clk 0:02:56]} 4. e3 {[%clk 0:02:57]}  Be7 {[%clk 0:02:55]} 5. d4 {[%clk 0:02:57]}  O-O {[%clk 0:02:52]} 6. Nbd2 {[%clk 0:02:57]}  c5 {[%clk 0:02:50]} 7. Bd3 {[%clk 0:02:56]}  cxd4 {[%clk 0:02:50]} 8. exd4 {[%clk 0:02:56]}  b6 {[%clk 0:02:48]} 9. O-O {[%clk 0:02:56]}  Ba6 {[%clk 0:02:48]} 10. Bxa6 {[%clk 0:02:46]}  Nxa6 {[%clk 0:02:48]} 11. Qe2 {[%clk 0:02:47]}  Nb4 {[%clk 0:02:46]} 12. c3 {[%clk 0:02:47]}  Nc6 {[%clk 0:02:46]} 13. Rfe1 {[%clk 0:02:47]}  Rc8 {[%clk 0:02:45]} 14. Rad1 {[%clk 0:02:38]}  Bd6 {[%clk 0:02:45]} 15. Ne5 {[%clk 0:02:36]}  Bxe5 {[%clk 0:02:33]} 16. dxe5 {[%clk 0:02:37]}  Nd7 {[%clk 0:02:34]} 17. c4 {[%clk 0:02:37]}  Re8 {[%clk 0:02:04]} 18. Nf3 {[%clk 0:02:17]}  dxc4 {[%clk 0:01:49]} 19. Rd6 {[%clk 0:01:32]}  Qe7 {[%clk 0:01:44]} 20. Red1 {[%clk 0:01:31]}  Nc5 {[%clk 0:01:38]} 21. Ba3 {[%clk 0:00:54]}  cxb3 {[%clk 0:01:22]} 22. axb3 {[%clk 0:00:55]}  Qb7 {[%clk 0:01:00]} 23. Qe3 {[%clk 0:00:28]}  Na5 {[%clk 0:00:51]} 24. Bxc5 {[%clk 0:00:20]}  bxc5 {[%clk 0:00:50]} 25. Rd7 {[%clk 0:00:20]}  Qxb3 {[%clk 0:00:50]} 26. Qg5 {[%clk 0:00:20]}  Nc6 {[%clk 0:00:36]} 27. h4 {[%clk 0:00:12]}  Nd4 {[%clk 0:00:33]} 28. R1xd4 {[%clk 0:00:07]}  cxd4 {[%clk 0:00:33]} 29. Qf4 {[%clk 0:00:08]}  Qb1+ {[%clk 0:00:30]} 30. Kh2 {[%clk 0:00:08]}  Qf5 {[%clk 0:00:29]} 31. Qxd4 {[%clk 0:00:08]}  h6 {[%clk 0:00:27]} 32. Qxa7 {[%clk 0:00:07]}  Qf4+ {[%clk 0:00:24]} 33. Kh3 {[%clk 0:00:07]}  Rc3 {[%clk 0:00:23]} 34. Qb7 {[%clk 0:00:04]}  Rec8 {[%clk 0:00:19]} 35. Qb6 {[%clk 0:00:02]}  R8c4 {[%clk 0:00:18]} 36. Qd8+ {[%clk 0:00:01]}  Kh7 {[%clk 0:00:18]} 37. Qe8 {[%clk 0:00:02]}  Rxf3+ {[%clk 0:00:16]} 38. g3 {[%clk 0:00:03]}  Qg4+ {[%clk 0:00:15]} 39. Kg2 {[%clk 0:00:03]}  Rxf2+ {[%clk 0:00:15]} 40. Kxf2 {[%clk 0:00:02]}  Rc2+ {[%clk 0:00:15]} 41. Ke3 {[%clk 0:00:03]}  Re2+ {[%clk 0:00:13]} 42. Kd3 {[%clk 0:00:04]}  Qe4+ {[%clk 0:00:13]} 43. Kc3 {[%clk 0:00:04]}  Rc2+ {[%clk 0:00:14]} 44. Kb3 {[%clk 0:00:04]}  Qc4+ {[%clk 0:00:15]} 45. Ka3 {[%clk 0:00:05]}  Ra2# {[%clk 0:00:15]} 0-1


[Site "https://www.chess.com"]

[Event "Titled Tuesday Blitz June 27 Late 2023"]
[White "Kavutskiy, Konstantin"]
[Black "Graif, William"]
[WhiteFideId "2026384"]
[BlackFideId "2609835"]
[WhiteElo "2621"]
[BlackElo "2504"]
[Result "1-0"]
[Round "9"]
[TimeControl "180+2"]
[Date "2023.06.27"]
[WhiteClock "0:00:24"]
[BlackClock "0:00:00"]
[Board "61"]

1. d4 {[%clk 0:03:00]}  Nf6 {[%clk 0:02:58]} 2. Bg5 {[%clk 0:02:59]}  d5 {[%clk 0:02:56]} 3. Nd2 {[%clk 0:02:59]}  c5 {[%clk 0:02:50]} 4. e3 {[%clk 0:02:59]}  cxd4 {[%clk 0:02:42]} 5. exd4 {[%clk 0:03:00]}  Nc6 {[%clk 0:02:42]} 6. c3 {[%clk 0:03:00]}  Qb6 {[%clk 0:02:18]} 7. Qb3 {[%clk 0:02:52]}  Bf5 {[%clk 0:02:08]} 8. Qxb6 {[%clk 0:02:42]}  axb6 {[%clk 0:02:06]} 9. Ngf3 {[%clk 0:02:41]}  Nd7 {[%clk 0:01:47]} 10. Bb5 {[%clk 0:02:32]}  h6 {[%clk 0:01:40]} 11. Bf4 {[%clk 0:02:29]}  e6 {[%clk 0:01:14]} 12. O-O {[%clk 0:02:27]}  Be7 {[%clk 0:01:09]} 13. Ne5 {[%clk 0:02:13]}  Ndxe5 {[%clk 0:01:04]} 14. Bxe5 {[%clk 0:02:14]}  O-O {[%clk 0:00:39]} 15. Bc7 {[%clk 0:02:09]}  Bd8 {[%clk 0:00:37]} 16. Bd6 {[%clk 0:01:57]}  Be7 {[%clk 0:00:25]} 17. Bxe7 {[%clk 0:01:28]}  Nxe7 {[%clk 0:00:26]} 18. a4 {[%clk 0:01:28]}  Nc8 {[%clk 0:00:19]} 19. Rfe1 {[%clk 0:01:24]}  Nd6 {[%clk 0:00:19]} 20. Bf1 {[%clk 0:01:25]}  Bc2 {[%clk 0:00:16]} 21. Ra3 {[%clk 0:00:48]}  Ra7 {[%clk 0:00:07]} 22. Rea1 {[%clk 0:00:44]}  Rfa8 {[%clk 0:00:06]} 23. b3 {[%clk 0:00:41]}  Rc8 {[%clk 0:00:05]} 24. c4 {[%clk 0:00:41]}  dxc4 {[%clk 0:00:04]} 25. bxc4 {[%clk 0:00:42]}  Ra5 {[%clk 0:00:01]} 26. R1a2 {[%clk 0:00:32]}  Bf5 {[%clk 0:00:01]} 27. Be2 {[%clk 0:00:28]}  Ra7 {[%clk 0:00:00]} 28. a5 {[%clk 0:00:24]} 1-0


[Site "https://www.chess.com"]

[Event "Titled Tuesday Blitz June 27 Late 2023"]
[White "Zavortink, Matt"]
[Black "Zeynalli, Rashad"]
[WhiteFideId "2034263"]
[BlackFideId "13403320"]
[WhiteElo "2478"]
[BlackElo "2597"]
[Result "0-1"]
[Round "9"]
[TimeControl "180+2"]
[Date "2023.06.27"]
[WhiteClock "0:00:11"]
[BlackClock "0:01:32"]
[Board "63"]

1. Nf3 {[%clk 0:03:00]}  d5 {[%clk 0:02:58]} 2. d4 {[%clk 0:02:58]}  Nf6 {[%clk 0:02:57]} 3. Bf4 {[%clk 0:02:58]}  e6 {[%clk 0:02:51]} 4. e3 {[%clk 0:02:58]}  Bd6 {[%clk 0:02:50]} 5. Bg3 {[%clk 0:02:58]}  c5 {[%clk 0:02:50]} 6. c3 {[%clk 0:02:57]}  Bxg3 {[%clk 0:02:42]} 7. hxg3 {[%clk 0:02:57]}  Nbd7 {[%clk 0:02:43]} 8. Nbd2 {[%clk 0:02:48]}  Qc7 {[%clk 0:02:43]} 9. Qc2 {[%clk 0:02:18]}  e5 {[%clk 0:02:38]} 10. Nxe5 {[%clk 0:02:15]}  Nxe5 {[%clk 0:02:39]} 11. dxe5 {[%clk 0:02:15]}  Qxe5 {[%clk 0:02:40]} 12. Bb5+ {[%clk 0:02:12]}  Bd7 {[%clk 0:02:39]} 13. Bxd7+ {[%clk 0:02:01]}  Kxd7 {[%clk 0:02:33]} 14. O-O-O {[%clk 0:01:50]}  Kc7 {[%clk 0:02:32]} 15. c4 {[%clk 0:01:37]}  Rad8 {[%clk 0:02:14]} 16. cxd5 {[%clk 0:01:33]}  Rxd5 {[%clk 0:02:15]} 17. Nf3 {[%clk 0:01:28]}  Qd6 {[%clk 0:02:05]} 18. e4 {[%clk 0:01:12]}  Rxd1+ {[%clk 0:01:58]} 19. Rxd1 {[%clk 0:01:12]}  Qe7 {[%clk 0:01:54]} 20. e5 {[%clk 0:01:03]}  Nd7 {[%clk 0:01:54]} 21. Rd5 {[%clk 0:00:48]}  Kb8 {[%clk 0:01:44]} 22. Kb1 {[%clk 0:00:40]}  Rc8 {[%clk 0:01:43]} 23. Qxh7 {[%clk 0:00:35]}  g6 {[%clk 0:01:34]} 24. Qh4 {[%clk 0:00:30]}  Qe6 {[%clk 0:01:34]} 25. Qe4 {[%clk 0:00:11]}  Nf6 {[%clk 0:01:32]} 0-1


[Site "https://www.chess.com"]

[Event "Titled Tuesday Blitz June 27 Late 2023"]
[White "Pinheiro, Iung Alicio de O."]
[Black "Mickiewicz, Piotr"]
[WhiteFideId "2104350"]
[BlackFideId "1114891"]
[WhiteElo "2575"]
[BlackElo "2453"]
[Result "1-0"]
[Round "9"]
[TimeControl "180+2"]
[Date "2023.06.27"]
[WhiteClock "0:00:06"]
[BlackClock "0:00:11"]
[Board "67"]

1. d4 {[%clk 0:03:00]}  d5 {[%clk 0:02:58]} 2. c4 {[%clk 0:02:53]}  e6 {[%clk 0:02:58]} 3. Nc3 {[%clk 0:02:53]}  a6 {[%clk 0:02:58]} 4. cxd5 {[%clk 0:02:52]}  exd5 {[%clk 0:02:58]} 5. Nf3 {[%clk 0:02:48]}  Nf6 {[%clk 0:02:59]} 6. Bg5 {[%clk 0:02:47]}  Be6 {[%clk 0:02:58]} 7. e3 {[%clk 0:02:47]}  Bd6 {[%clk 0:02:54]} 8. Bd3 {[%clk 0:02:34]}  Nbd7 {[%clk 0:02:53]} 9. Rc1 {[%clk 0:02:30]}  h6 {[%clk 0:02:52]} 10. Bf4 {[%clk 0:02:29]}  Qe7 {[%clk 0:02:44]} 11. O-O {[%clk 0:02:23]}  O-O {[%clk 0:02:41]} 12. Re1 {[%clk 0:02:16]}  Bg4 {[%clk 0:02:35]} 13. h3 {[%clk 0:02:07]}  Bxf4 {[%clk 0:02:30]} 14. hxg4 {[%clk 0:01:30]}  Bd6 {[%clk 0:02:28]} 15. g5 {[%clk 0:01:31]}  hxg5 {[%clk 0:02:26]} 16. Nxg5 {[%clk 0:01:32]}  g6 {[%clk 0:02:22]} 17. Qf3 {[%clk 0:01:26]}  c6 {[%clk 0:02:19]} 18. e4 {[%clk 0:01:14]}  Nxe4 {[%clk 0:02:18]} 19. Ncxe4 {[%clk 0:01:08]}  dxe4 {[%clk 0:02:18]} 20. Nxe4 {[%clk 0:01:07]}  Kg7 {[%clk 0:02:05]} 21. Nc5 {[%clk 0:00:56]}  Bxc5 {[%clk 0:01:42]} 22. Rxe7 {[%clk 0:00:52]}  Bxe7 {[%clk 0:01:42]} 23. d5 {[%clk 0:00:49]}  c5 {[%clk 0:01:36]} 24. d6 {[%clk 0:00:47]}  Bf6 {[%clk 0:01:32]} 25. Qxb7 {[%clk 0:00:43]}  Ne5 {[%clk 0:01:32]} 26. Qd5 {[%clk 0:00:21]}  Rab8 {[%clk 0:01:19]} 27. b3 {[%clk 0:00:21]}  Nxd3 {[%clk 0:01:12]} 28. Qxd3 {[%clk 0:00:21]}  Bd4 {[%clk 0:01:11]} 29. Qxa6 {[%clk 0:00:17]}  Ra8 {[%clk 0:01:08]} 30. Qe2 {[%clk 0:00:17]}  Rfd8 {[%clk 0:01:05]} 31. Rxc5 {[%clk 0:00:15]}  Bxc5 {[%clk 0:01:03]} 32. Qe5+ {[%clk 0:00:15]}  Kg8 {[%clk 0:01:03]} 33. Qxc5 {[%clk 0:00:16]}  Rxa2 {[%clk 0:01:03]} 34. Qc7 {[%clk 0:00:12]}  Raa8 {[%clk 0:01:02]} 35. d7 {[%clk 0:00:11]}  Kf8 {[%clk 0:00:59]} 36. Qd6+ {[%clk 0:00:11]}  Kg8 {[%clk 0:00:59]} 37. Qc7 {[%clk 0:00:09]}  Kf8 {[%clk 0:00:58]} 38. Qd6+ {[%clk 0:00:10]}  Kg8 {[%clk 0:00:59]} 39. Qe7 {[%clk 0:00:10]}  Rf8 {[%clk 0:00:45]} 40. b4 {[%clk 0:00:10]}  Rad8 {[%clk 0:00:46]} 41. b5 {[%clk 0:00:10]}  f5 {[%clk 0:00:46]} 42. b6 {[%clk 0:00:07]}  Rb8 {[%clk 0:00:46]} 43. b7 {[%clk 0:00:06]}  Rfd8 {[%clk 0:00:45]} 44. g3 {[%clk 0:00:05]}  Rf8 {[%clk 0:00:44]} 45. Kg2 {[%clk 0:00:05]}  Rbd8 {[%clk 0:00:19]} 46. Kf3 {[%clk 0:00:05]}  Rb8 {[%clk 0:00:20]} 47. Kf4 {[%clk 0:00:05]}  Rbd8 {[%clk 0:00:16]} 48. Kg5 {[%clk 0:00:05]}  Rb8 {[%clk 0:00:15]} 49. Kxg6 {[%clk 0:00:05]}  Rf7 {[%clk 0:00:12]} 50. Qxf7+ {[%clk 0:00:05]}  Kh8 {[%clk 0:00:11]} 51. Qg7# {[%clk 0:00:06]} 1-0


[Site "https://www.chess.com"]

[Event "Titled Tuesday Blitz June 27 Late 2023"]
[White "Ambartsumova, Karina"]
[Black "liwadas82"]
[WhiteFideId "4166299"]
[WhiteElo "2561"]
[BlackElo "2450"]
[Result "0-1"]
[Round "9"]
[TimeControl "180+2"]
[Date "2023.06.27"]
[WhiteClock "0:00:00"]
[BlackClock "0:00:04"]
[Board "69"]

1. e4 {[%clk 0:03:00]}  e5 {[%clk 0:02:59]} 2. Nf3 {[%clk 0:03:00]}  Nc6 {[%clk 0:02:59]} 3. Bc4 {[%clk 0:03:00]}  Bc5 {[%clk 0:02:59]} 4. O-O {[%clk 0:03:00]}  Nf6 {[%clk 0:02:59]} 5. d4 {[%clk 0:03:00]}  Bxd4 {[%clk 0:02:59]} 6. Nxd4 {[%clk 0:03:00]}  Nxd4 {[%clk 0:02:59]} 7. Bg5 {[%clk 0:03:00]}  d6 {[%clk 0:02:47]} 8. f4 {[%clk 0:03:00]}  Be6 {[%clk 0:02:08]} 9. Na3 {[%clk 0:02:59]}  h6 {[%clk 0:01:58]} 10. Bh4 {[%clk 0:02:53]}  g5 {[%clk 0:01:40]} 11. fxg5 {[%clk 0:02:47]}  Nxe4 {[%clk 0:01:39]} 12. Qh5 {[%clk 0:02:25]}  Nxg5 {[%clk 0:01:13]} 13. Rxf7 {[%clk 0:01:43]}  Bxf7 {[%clk 0:00:49]} 14. Bxf7+ {[%clk 0:01:43]}  Kd7 {[%clk 0:00:38]} 15. Qg4+ {[%clk 0:01:36]}  Kc6 {[%clk 0:00:36]} 16. c3 {[%clk 0:01:16]}  Ngf3+ {[%clk 0:00:35]} 17. gxf3 {[%clk 0:01:05]}  Qxh4 {[%clk 0:00:34]} 18. cxd4 {[%clk 0:01:02]}  Qxg4+ {[%clk 0:00:34]} 19. fxg4 {[%clk 0:01:03]}  exd4 {[%clk 0:00:33]} 20. Be6 {[%clk 0:00:54]}  d5 {[%clk 0:00:23]} 21. Bf5 {[%clk 0:00:46]}  a6 {[%clk 0:00:17]} 22. Nc2 {[%clk 0:00:43]}  Kd6 {[%clk 0:00:16]} 23. Nxd4 {[%clk 0:00:42]}  c5 {[%clk 0:00:17]} 24. Ne6 {[%clk 0:00:42]}  h5 {[%clk 0:00:14]} 25. h3 {[%clk 0:00:40]}  hxg4 {[%clk 0:00:14]} 26. hxg4 {[%clk 0:00:41]}  Rae8 {[%clk 0:00:12]} 27. Nf4 {[%clk 0:00:38]}  d4 {[%clk 0:00:09]} 28. Rd1 {[%clk 0:00:37]}  b5 {[%clk 0:00:09]} 29. b4 {[%clk 0:00:33]}  cxb4 {[%clk 0:00:08]} 30. Rxd4+ {[%clk 0:00:33]}  Kc5 {[%clk 0:00:08]} 31. Rd5+ {[%clk 0:00:26]}  Kb6 {[%clk 0:00:07]} 32. Rd6+ {[%clk 0:00:24]}  Ka5 {[%clk 0:00:03]} 33. g5 {[%clk 0:00:20]}  Re1+ {[%clk 0:00:03]} 34. Kf2 {[%clk 0:00:20]}  Ra1 {[%clk 0:00:04]} 35. Be6 {[%clk 0:00:17]}  Rf8 {[%clk 0:00:04]} 36. Kg3 {[%clk 0:00:16]}  Rg1+ {[%clk 0:00:03]} 37. Ng2 {[%clk 0:00:16]}  Rb1 {[%clk 0:00:03]} 38. g6 {[%clk 0:00:13]}  Rf6 {[%clk 0:00:03]} 39. Nh4 {[%clk 0:00:05]}  Re1 {[%clk 0:00:02]} 40. g7 {[%clk 0:00:04]}  Rg1+ {[%clk 0:00:02]} 41. Kh2 {[%clk 0:00:04]}  Rxg7 {[%clk 0:00:02]} 42. Nf5 {[%clk 0:00:03]}  Rg5 {[%clk 0:00:01]} 43. Nd4 {[%clk 0:00:03]}  Rh6+ {[%clk 0:00:02]} 44. Bh3 {[%clk 0:00:01]}  Rxd6 {[%clk 0:00:03]} 45. Nb3+ {[%clk 0:00:00]}  Kb6 {[%clk 0:00:04]} 0-1


[Site "https://www.chess.com"]